Cogmind - Beta 13 @@@ ROGUE MODE // 2024.04.30 @ 18:38:20 Player: satan5 Result: Destroyed by 0F-9P5(R) with Subdweller Laser Performance ------------- Evolutions (0) 0 Regions Visited (2) 400 Robots Destroyed (16) 80 Value Destroyed (491) 491 Prototype IDs (6) 120 Alien Tech Used (0) 0 Bonus (0) 0 TOTAL SCORE: 1091 Bonus ------- None Cogmind --------- Core Integrity 0/250 Matter 230/300 Energy 150/150 System Corruption 0% Temperature Cool (32) Movement Treading (260) Ox1 Location -10/Subcaves Parts ------- > --- POWER (1) -------- Light Angular Momentum Engine > --- PROPULSION (2) --- Spiked Treads Myomer Leg > --- UTILITY (2) ------ Medium Storage Unit Subdweller Optics > --- WEAPON (2) ------- Subdweller Beam Cannon Subdweller Shrapnel Launcher > --- INVENTORY (10) --- Subdweller Power Source Carbon-fiber Leg Disposable Heat Sink Improved Terrain Scanner Makeshift Kinetic Plating Subdweller Laser Beamcaster Subdweller Beam Cannon Subdweller Beam Cannon Makeshift Axe Peak State ------------ > --- POWER ------------ Light Angular Momentum Engine > --- PROPULSION ------- Carbon-fiber Leg Myomer Leg > --- UTILITY ---------- Medium Storage Unit Subdweller Optics > --- WEAPON ----------- Subdweller Beam Cannon Subdweller Machine Gun > --- INVENTORY -------- Subdweller Power Source Carbon-fiber Leg Improved Terrain Scanner Scrap Shield Beamcaster Subdweller Beam Cannon Subdweller Beam Cannon Subdweller Machine Gun [Rating: 24] Favorites ----------- Power Ion Engine Engine Ion Engine Propulsion Aluminum Leg Treads Spiked Treads Leg Aluminum Leg Utility Medium Storage Unit Device Subdweller Optics Storage Medium Storage Unit Weapon Subdweller Beam Cannon Energy Gun Small Laser Energy Cannon Subdweller Beam Cannon Ballistic Gun Subdweller Machine Gun Launcher Subdweller Shrapnel Launcher Special Weapon Mining Laser Build | -11 -10 -10 ------- Run | Yrd Mat Sub Slots Evolved . | . . . Power . | . . . Propulsion . | . . . Utility . | . . . Weapon . | . . . Parts Attached 29 | 7 3 19 Power 5 | 1 . 4 Engine 5 | 1 . 4 Core . | . . . Reactor . | . . . Propulsion 5 | 2 . 3 Treads 1 | . . 1 Leg 4 | 2 . 2 Wheel . | . . . Hover . | . . . Flight . | . . . Utility 5 | 1 2 2 Device 3 | . 1 2 Storage 2 | 1 1 . Processor . | . . . Hackware . | . . . Protection . | . . . Artifact . | . . . Weapon 14 | 3 1 10 Energy Gun 2 | 1 . 1 Energy Cannon 3 | . . 3 Ballistic Gun 6 | 2 . 4 Ballistic Cannon . | . . . Launcher 2 | . . 2 Special Weapon 1 | . 1 . Impact Weapon . | . . . Slashing Weapon . | . . . Piercing Weapon . | . . . Special Melee Weapon . | . . . Unidentified Prototypes . | . . . Parts Lost 5 | . . 5 Power 1 | . . 1 Propulsion 2 | . . 2 Utility 1 | . . 1 Weapon 1 | . . 1 Highest Loss Streak 3 | . . 3 To Critical Strikes . | . . . Average Slot Usage (%) 98 | . 97 98 Engine 13 | . 14 13 Leg 27 | . 28 27 Device 13 | . 11 13 Storage 14 | . 14 14 Energy Cannon 10 | . . 13 Ballistic Gun 15 | . 27 11 Special Weapon 1 | . . 1 Naked Turns . | . . . Heaviest Build 37 | 13 19 37 Greatest Support 40 | 20 20 40 Greatest Overweight (x) 2 | 1 . 2 Average Overweight (x) . | . . . Largest Inventory Capacity 10 | 8 10 10 Average Capacity 9 | 7 9 10 Most Carried 10 | 5 10 10 Average Carried 8 | 1 7 9 Final Capacity 10 | 8 10 10 Final Carried 10 | 3 10 10 Class Distribution -------------------- 61% | Scavenger-Mutant 38% | Mutant Dominant Class ---------------- Mutant | -10/Materials Scavenger-Mutant | -10/Subcaves Resources | -11 -10 -10 ----------- Run | Yrd Mat Sub Matter Collected 628 | 218 135 275 Remotely . | . . . Salvage Created 631 | 39 176 416 Parts 51 | 8 12 31 Haulers Intercepted 1 | . 1 . Recyclers Shooed . | . . . Parts Field Recycled . | . . . Retrieved Matter . | . . . Parts Self-Destructed . | . . . Prevented . | . . . Kills | -11 -10 -10 ------- Run | Yrd Mat Sub Combat Hostiles Destroyed 12 | . 2 10 Guns 4 | . 2 2 Cannons 7 | . . 7 AOE 1 | . . 1 Classes Destroyed 4 | 1 2 1 Tunneler 3 | 2 1 . Hauler 1 | . 1 . Grunt 2 | . 2 . Subdweller 10 | . . 10 Best Kill Streak 3 | 2 3 2 Combat Bots Only 2 | . 2 2 Max Kills in Single Turn 1 | 1 1 1 Gunslinging . | . . . Exploded 1 | . . 1 Melee . | . . . Uniques/NPCs Destroyed . | . . . Combat | -11 -10 -10 -------- Run | Yrd Mat Sub Hostile Shots Fired 50 | . 5 45 Missed 8 | . 3 5 Damage Taken 980 | . 24 956 Core 252 | . . 252 Absorbed by Shields . | . . . Core Remaining (%) 100 | 100 . . Volleys Fired 73 | 3 19 51 Largest 2 | 2 2 2 Hottest 160 | 40 100 160 Shots Fired 136 | 6 36 94 Gun 76 | 6 34 36 Cannon 54 | . . 54 Launcher 4 | . . 4 Special 2 | . 2 . Kinetic 79 | 6 34 39 Thermal 57 | . 2 55 Explosive . | . . . Electromagnetic . | . . . Robot Hit Streak 14 | 2 7 14 Robot Miss Streak 7 | 1 7 1 Penetration Max . | . . . Secondary Targets 1 | . . 1 Max Gunslinging Chain 1 | . . 1 Shots Hit Robots 56 | 3 15 38 Core Hits 22 | 2 8 12 Critical Kills . | . . . Critical Parts Destroyed . | . . . Critical Strikes . | . . . Melee Attacks . | . . . Impact . | . . . Slashing . | . . . Piercing . | . . . Sneak Attacks . | . . . Combat Hostiles . | . . . Follow-up Attacks . | . . . Damage Inflicted 1091 | 37 166 888 Guns 428 | 37 166 225 Cannons 361 | . . 361 Explosions 302 | . . 302 Melee . | . . . Ramming . | . . . Kinetic 719 | 37 166 516 Thermal 372 | . . 372 Explosive . | . . . Electromagnetic . | . . . Impact . | . . . Slashing . | . . . Piercing . | . . . Highest Corruption . | . . . Average Corruption . | . . . Corruption Purged . | . . . Corruption Blocked . | . . . Overload Shots . | . . . Overflow Damage . | . . . Projectiles . | . . . Explosions . | . . . Melee . | . . . Knockbacks . | . . . Impact . | . . . Kinetic . | . . . Secondary . | . . . Self-Inflicted Damage . | . . . Shots . | . . . Rammed . | . . . Targets Rammed . | . . . Kicked . | . . . Crushed . | . . . Highest Temperature 204 | . 40 204 Average Temperature 44 | . 17 49 Received Heat Transfer 144 | . 12 132 Siege Activations . | . . . Robots Corrupted . | . . . Combat Hostiles . | . . . Parts Fried . | . . . Impact Corruptions . | . . . Robots Melted . | . . . Combat Hostiles . | . . . Parts Melted 1 | . . 1 Heat Transferred 506 | . . 506 Parts Sabotaged . | . . . Parts Stolen . | . . . Parts Stripped . | . . . Power Chain Reactions . | . . . Alert | -11 -10 -10 ------- Run | Yrd Mat Sub Peak Influence 98 | 10 98 . Initial 6 | . 6 . Average 64 | 2 76 . Maximum Alert Level . | . . . Low Security (%) 100 | 100 100 . Level 1 . | . . . Level 2 . | . . . Level 3 . | . . . Level 4 . | . . . Level 5 . | . . . High Security . | . . . Max Security . | . . . Squads Dispatched . | . . . Investigation . | . . . Extermination . | . . . Reinforcement . | . . . Assault . | . . . Garrison . | . . . Intercept . | . . . Searches Triggered . | . . . Construction Impeded . | . . . Haulers Reinforced . | . . . Active Scanning Responses . | . . . Cargo Convoy Interrupts . | . . . Stealth | -11 -10 -10 --------- Run | Yrd Mat Sub Distress Signals . | . . . Communications Jammed . | . . . Distress Signals . | . . . Times Spotted 23 | . 5 18 Peak Tracking Total 6 | . 2 6 Tactical Retreats . | . . . Traps | -11 -10 -10 ------- Run | Yrd Mat Sub Traps Triggered . | . . . Indirectly . | . . . Trap Hack Attempts . | . . . Triggered . | . . . Disarmed . | . . . Reprogrammed . | . . . Reused . | . . . Traps Extracted . | . . . Installed 1 | . . 1 Triggered . | . . . Machines | -11 -10 -10 ---------- Run | Yrd Mat Sub Machines Disabled . | . . . Max in Single Turn . | . . . Machines Repaired . | . . . Machines Dismantled . | . . . Machines Sabotaged . | . . . Overloaded Fab Kills . | . . . Hacking | -11 -10 -10 --------- Run | Yrd Mat Sub Machines Accessed 2 | . 2 . Terminals 2 | . 2 . Fabricators . | . . . Repair Stations . | . . . Recycling Units . | . . . Scanalyzers . | . . . Garrison Access . | . . . Total Hacks 6 | . 6 . Successful 6 | . 6 . Failed . | . . . Catastrophic . | . . . Database Lockouts . | . . . Manual 3 | . 3 . Terminals 6 | . 6 . Fabricators . | . . . Repair Stations . | . . . Recycling Units . | . . . Scanalyzers . | . . . Garrison Access . | . . . Terminal Hacks 6 | . 6 . Prototype ID Bank 3 | . 3 . Branch Access Points 1 | . 1 . Hauler Manifests 1 | . 1 . Zone Layout 1 | . 1 . Fabricator Hacks . | . . . Repair Station Hacks . | . . . Recycling Unit Hacks . | . . . Scanalyzer . | . . . Garrison Access Hacks . | . . . Unauthorized Hacks . | . . . Terminals . | . . . Fabricators . | . . . Repair Stations . | . . . Recycling Units . | . . . Scanalyzers . | . . . Garrison Access . | . . . Data Cores Recovered . | . . . Used . | . . . Hacking Detections 2 | . 2 . Full Trace Events . | . . . Feedback Events . | . . . Feedback Blocked . | . . . Robot Schematics Acquired . | . . . Robots Built . | . . . Authchips . | . . . Time . | . . . Total Robot Build Rating . | . . . Part Schematics Acquired . | . . . Parts Built . | . . . Authchips . | . . . Time . | . . . Total Part Build Rating . | . . . Parts Repaired . | . . . Time . | . . . Parts Recycled . | . . . Recycled Matter . | . . . Retrieved Matter . | . . . Retrieved Components . | . . . Parts Scanalyzed . | . . . Part Schematics Acquired . | . . . Parts Damaged . | . . . Bothacking | -11 -10 -10 ------------ Run | Yrd Mat Sub Used RIF Installer . | . . . Robots Hacked . | . . . Non-combat . | . . . Combat . | . . . Robot Hacks Applied . | . . . Relay Couplers Released . | . . . Fabnet Peak Effective % . | . . . Robots Rewired . | . . . Allies Hacked . | . . . Hacks Repelled . | . . . Allies | -11 -10 -10 -------- Run | Yrd Mat Sub Total Allies . | . . . Largest Group . | . . . Highest-Rated Group . | . . . Highest-Rated Ally . | . . . Total Orders . | . . . Ally Attacks . | . . . Total Damage . | . . . Kills . | . . . Allies Corrupted . | . . . Allies Melted . | . . . Intel | -11 -10 -10 ------- Run | Yrd Mat Sub Robot Analysis Total . | . . . Derelict Logs Recovered . | . . . Drone Launches . | . . . Drone Recoveries . | . . . Exploration | -11 -10 -10 ------------- Run | Yrd Mat Sub Turns Passed 1525 | 74 378 1073 Spaces Moved 786 | 46 131 609 Core 11 | 11 . . Treads 1 | . . 1 Legs 774 | 35 131 608 Wheels . | . . . Hover . | . . . Flight . | . . . Fastest Speed 50 | 50 120 120 Average Speed 122 | 106 120 124 Slowest Speed 260 | 120 120 260 Overloaded Moves . | . . . Propulsion Burnouts . | . . . Robots Hopped . | . . . Cave-ins Triggered . | . . . Exploration Rate (%) 21 | 3 21 39 Regions Visited 2 Branch Regions 1 Pre-discovered Areas 1 | . . 1 Known Exits Taken . | . . . Unknown Exits Taken 2 | 1 1 . Scrap Searched 8 | . . 8 Spaces Dug 21 | . . 21 Terrain Destroyed 74 | . . 74 Melee . | . . . Projectile 26 | . . 26 AOE 48 | . . 48 Terrain Rammed . | . . . Walls Destroyed . | . . . Machines Disabled . | . . . Actions | -11 -10 -10 --------- Run | Yrd Mat Sub Total 1212 | 64 316 832 Wait 261 | . 151 110 Move 784 | 45 130 609 Hop . | . . . Pick Up 39 | 8 10 21 Fast Attach 6 | 2 . 4 Attach 12 | 4 1 7 Detach . | . . . Swap 11 | 1 2 8 Drop 25 | 1 3 21 Fire 73 | 3 19 51 Melee . | . . . Ram . | . . . Kick . | . . . Crush . | . . . Escape Stasis . | . . . Rewire . | . . . Trap 1 | . . 1 Miscellaneous . | . . . Route ------- -11/Scrapyard -10/Materials (discovered 3 exits: *Min x2 / [*Sub]) -10/Subcaves History --------- Turn | Location | Event 15 | -11/Scrapyard | Discovered new exit (range 15) 75 | -11/Scrapyard | Entered Materials 92 | -10/Materials | Identified exit to Mines 247 | -10/Materials | Discovered new exit (range 9) 313 | -10/Materials | Build established: Mutant 453 | -10/Materials | Entered Subcaves 576 | -10/Subcaves | Ambushed by swarm of Subdwellers 604 | -10/Subcaves | Core integrity fell below 50% 635 | -10/Subcaves | Lost 3 parts (1p1u1w) 668 | -10/Subcaves | Disturbed a concealed Subdweller 885 | -10/Subcaves | Build established: Scavenger-Mutant 1105 | -10/Subcaves | Learned location of Zion (-6) 1105 | -10/Subcaves | Met a Zionite searching for "candidates" 1230 | -10/Subcaves | Ambushed by Subdweller buried in earth 1505 | -10/Subcaves | Core integrity fell below 20% 1526 | -10/Subcaves | Destroyed by 0F-9P5(R) with Subdweller Laser Last Messages --------------- 01306_ Acquired 6 matter. 01307_ Dropped Broken Sub. Machine Gun. 01308_ Acquired 2 matter. 01339_ Acquired Sub. Power Source. 01361_ XX-399(R): "OHNO!" 01363_ XX-399(R) destroyed. 01367_ Acquired 8 matter. 01371_ Acquired Disposable Heat Sink. 01375_ Dropped Scrap Shield. 01376_ Acquired Sub. Laser. 01388_ Subatomizers dissect the Ion Engine. 01414_ Acquired Mak. Axe. 01419_ 7P-GIZ(R) destroyed. 01421_ Acquired 37 matter. 01434_ Acquired 8 matter. 01467_ Dropped Sub. Power Source. 01467_ Acquired Mak. Kinetic Plating. 01504_ Carbon-fiber Leg destroyed. 01505_ Z7-12B(R) destroyed. 01515_ Acquired Spk. Treads. Map ----- +----------------------------------------------------+ | ????????????? #?????? #??????????????? | | ?????????????# #??????# ! #???????????????? | | ?????????????# #####?## #???????????????? | | ????????????## ### #???????????????? | | ???????????## ### #???????????????? | | ???????????# ## #???????????????? | | ??????###### ##??????????????? | | ####?## # # ##&! #??????????????? | | #[ ### #??##%[ #??????????????? | | "" #????#=[* #??????????????? | | ## # ## # # #????#=% #??????????????? | | #### # ######### #????##= ##?????????????? | | ???### #????### ##???### #?????????????? | | ?????## #???##! ###???##! *####?????????????? | | ???????##???# &&####### =#????????????????? | | ????????????##&*&#; ##???????????????? | | ???????###???## &% " #???????????????? | | ??????## ##???#""""" ## #???????????????? | | ?????## #???##### ## #???????????????? | | ?????# ""#?####??##| ### ##???????????????? | | ??????#" ##?# #???## ;; ###?????????????? | | ??????#" "### #????##; ; #?????????????? | | ??????## "#" ####### #?????????????? | | ?????## *" # ##" #; #?????????????? | | ????## "" =* [ ! * #?????????????? | | ????# ## ""###""" ; !%@ #?????????????? | | ????##"" ###"##?### ! #?????????????? | | ?????### #####????##; #?????????????? | | ???????# ######### ; # #?????????????? | | ???????# # # #;; ###?????????????? | | ???????## ; #??????????????? | | ????????#### ### ; ; ##??????????????? | | ???????????###?####;;; #???????????????? | | ?????????????????? ;;; #???????????????? | | ?????????????????; ;##???????????????? | | ????????????????# ##????????????????? | | ???????????????? R ;?????????????????? | | ??????????????? ;?????????????????? | | ?????????????? ?????????????????? | | ????????????? ????????????????? | | ????????????"" ; #???????????????? | | ????????????? # #;# #???????????????? | | ???????????????? ##?#? ???????????????? | | ??????????????????# ????? #??????????????? | | ??????????????????# ?????###??????????????? | | ??????????????????? ??????????????????????? | | ??????????????????? ??????????????????????? | | ????????????????????""??????????????????????? | | ????????????????????????????????????????????? | | ????????????????????????????????????????????? | +----------------------------------------------------+ Best States ------------- Heat Dissipation 25 Energy Generation 18 Energy Capacity 250 Matter Stores 300 Matter Capacity 300 Sight Range 21 Terrain Scan Density 10 Evasion (%) 55 Recoil Reduction 1 Item Schematics ----------------- None Robot Schematics ------------------ None Fabricated ------------ Nothing Alien Tech Used ----------------- None Achievements -------------- None Challenges ------------ None Game ------ Seed TiamatCarbideDissipator Manual? 0 Play Time 00:39:54 Cumulative 160.6 hours Start 2024.04.29 @ 17:51:18 End 2024.04.30 @ 18:38:20 Sessions 4 Manual Loads 0 Difficulty Rogue Special Mode None Game No. 57 Rogue 43 Adventurer 14 Explorer 0 Win Type - Total 11 Types 9/0/0/1/0/0/0/0/1 Lore% 60 Gallery% 74 Achievement% 62 Wizard Run 0 Options --------- Layout 2 ASCII 0 Keyboard 0 Movement Mouse Keybinds 0 Fullscreen 1 Font 20/SmallcapsGlow Map View 50x44 Zoom Use 2% Tactical HUD 1 Map Filters NONE Filters NONE Steam 1 RUN: 0572a538-718a-4a24-8208-3514212e2304